bitfinex-derivatives/quotes_ETHF0:USTF0_20250417
["timestamp","ask_amount","ask_price","bid_price","bid_amount"]
[1744921183293,0.00944495,1585.3,1585.2,6.23044]
[1744921184191,0.00944495,1585.3,1585.2,3.09764]
[1744921184789,1.27100495,1585.3,1585.2,0.075]
[1744921184989,2.95490495,1585.3,1585.2,0.075]
[1744921185193,1.26164,1585.2,1585.1,2.33549]
[1744921185394,1.27107495,1585.3,1585.2,1.26164]
[1744921185597,1.27107495,1585.3,1585.2,3.03734]
[1744921189396,1.26164,1585.2,1585.1,2.33544]
[1744921189591,1.26164,1585.2,1585.1,4.00184]
[1744921192899,2.88784,1585.2,1585.1,4.00184]
[1744921196801,1.6262,1585.2,1585.1,4.00184]
[1744921196998,4.20842746,1585.3,1585.2,1.26164]
[1744921197299,0.00944495,1585.3,1585.2,2.97284]
[1744921197599,1.27100495,1585.3,1585.2,2.97284]
[1744921197800,1.27100495,1585.3,1585.2,7.55084]
[1744921198100,1.27100495,1585.3,1585.2,7.47584]
[1744921200102,0.00944495,1585.3,1585.2,7.47584]
[1744921200699,0.00944495,1585.3,1585.2,12.47584]
[1744921201206,0.00944495,1585.3,1585.2,12.55084]
[1744921201606,0.00944495,1585.3,1585.2,15.75864]
[1744921202704,0.00944495,1585.3,1585.2,12.55084]
[1744921204611,0.00944495,1585.3,1585.2,7.55084]
[1744921205500,5.90468251,1585.6,1585.2,6.2892]
[1744921205705,4.19898251,1585.6,1585.5,1.2614]
[1744921206208,5.46030251,1585.6,1585.5,3.9422]
[1744921206410,4.19898251,1585.6,1585.5,3.9422]
[1744921207310,4.19898251,1585.6,1585.5,8.5202]
[1744921209209,4.20842746,1585.7,1585.6,1.26132]
[1744921209409,4.20842746,1585.7,1585.6,3.04652]
[1744921212809,4.20842746,1585.7,1585.6,8.04652]
[1744921213010,2.87130746,1585.7,1585.6,8.04652]
[1744921213213,1.13e-06,1585.8,1585.7,1.26124]
[1744921213412,8.33466557,1585.9,1585.8,1.27039742]
[1744921213413,4.1992818,1585.9,1585.8,1.27039742]
[1744921213614,4.1992818,1585.9,1585.8,5.84139742]
[1744921213813,1.21143438,1585.9,1585.8,16.83376]
[1744921214017,4.38e-06,1585.9,1585.8,16.83376]
[1744921215419,4.38e-06,1585.9,1585.8,11.83376]
[1744921215616,4.38e-06,1585.9,1585.8,8.62596]
[1744921217820,1.7597,1585.9,1585.8,8.62596]
[1744921218721,3.02078,1585.9,1585.8,7.59256]
[1744921219027,3.02078,1585.9,1585.8,5.83216]
[1744921219430,1.7597,1585.9,1585.8,5.83216]
[1744921220026,3.02078,1585.9,1585.8,5.83216]
[1744921221027,1.7597,1585.9,1585.8,5.83216]
[1744921222131,3.02078,1585.9,1585.8,5.83216]
[1744921224330,1.7597,1585.9,1585.8,5.83216]
[1744921224633,3.02078,1585.9,1585.8,5.83216]
[1744921224829,1.7597,1585.9,1585.8,5.83216]
[1744921225939,3.02078,1585.9,1585.8,5.83216]
[1744921227136,3.02078,1585.9,1585.8,1.26116]
[1744921227432,1.26116,1585.8,1585.7,1.27061495]
[1744921227625,7.09176,1585.8,1585.7,1.27061495]
[1744921227824,7.09176,1585.8,1585.7,0.00944495]
[1744921228025,1.26132,1585.6,1585.5,2.28455]
[1744921228229,1.2614,1585.5,1585.4,5.83142]
[1744921228430,3.8842,1585.5,1585.4,5.83142]
[1744921230536,2.6228,1585.5,1585.4,5.83142]
[1744921230733,1.6369,1585.5,1585.4,7.45442]
[1744921230934,1.6369,1585.5,1585.4,8.44832]
[1744921231133,2.8983,1585.5,1585.4,8.44832]
[1744921233331,2.8983,1585.5,1585.4,4.57]
[1744921233630,1.26148,1585.4,1585.3,0.00944495]
[1744921233939,7.09078,1585.4,1585.3,0.00944495]
[1744921238635,1.2618,1585.0,1584.9,2.29643]
[1744921238836,1.26188,1584.9,1584.8,8.51038]
[1744921239037,5.53166,1585.0,1584.9,1.26188]
[1744921239228,7.23306,1585.0,1584.9,1.6123]
[1744921239429,1.26188,1584.9,1584.8,6.89809]
[1744921239632,6.17104,1585.0,1584.9,1.26188]
[1744921239837,6.18048495,1585.0,1584.9,2.87418]
[1744921240430,6.18048495,1585.0,1584.9,1.26188]
[1744921240634,1.26188,1584.9,1584.8,5.83293]
[1744921240840,2.96328,1584.9,1584.8,5.83293]
[1744921241643,2.96328,1584.9,1584.8,7.53643]
[1744921242341,4.47911495,1585.0,1584.9,1.26188]
[1744921242540,6.16281495,1585.0,1584.9,2.96538]
[1744921243345,6.16281495,1585.0,1584.9,3.97388]
[1744921243942,3.21724495,1585.0,1584.9,3.97388]
[1744921244334,4.47904495,1585.0,1584.9,3.97388]
[1744921245138,3.21724495,1585.0,1584.9,3.97388]
[1744921245442,0.00944495,1585.0,1584.9,8.97388]
[1744921246143,0.00944495,1585.0,1584.9,9.04888]
[1744921249139,0.00944495,1585.0,1584.9,4.04888]
[1744921251342,0.00944495,1585.0,1584.9,7.25668]
[1744921254645,0.00944495,1585.0,1584.9,12.25668]
[1744921254855,4.46928,1585.4,1585.3,1.26156]
[1744921255349,4.46928,1585.4,1585.3,2.28476]
[1744921255648,4.46928,1585.4,1585.3,3.94116]
[1744921256042,3.2078,1585.4,1585.3,3.94116]
[1744921257046,0.00944495,1585.5,1585.4,1.26148]
[1744921257245,0.00944495,1585.5,1585.4,3.96938]
[1744921258251,0.00944495,1585.5,1585.4,4.04438]
[1744921259848,10.08326557,1585.9,1585.8,1.26116]
[1744921260149,13.28182702,1585.9,1585.8,1.26116]
[1744921260354,14.54290702,1585.9,1585.7,2.6391]
[1744921260548,1.26116,1585.8,1585.7,2.6391]
[1744921260749,12.80361557,1585.9,1585.8,1.26116]
[1744921261049,12.81306052,1585.9,1585.8,1.26116]
[1744921261756,1.26116,1585.8,1585.7,3.90027]
[1744921262055,3.21724495,1585.9,1585.8,1.26116]
[1744921263351,4.86444495,1585.9,1585.8,1.26116]
[1744921266554,6.12552495,1585.9,1585.8,1.26116]
[1744921266857,1.26116,1585.8,1585.7,3.9003]
[1744921267052,1.619,1585.8,1585.7,3.9003]
[1744921268146,2.88016,1585.8,1585.7,3.9003]
[1744921268350,1.619,1585.8,1585.7,3.9003]
[1744921268553,2.88016,1585.8,1585.7,3.9003]
[1744921268953,1.619,1585.8,1585.7,3.9003]
[1744921269160,2.88016,1585.8,1585.7,3.9003]
[1744921269651,3.21724495,1585.9,1585.8,1.26116]
[1744921269854,3.21724495,1585.9,1585.8,2.90136]
[1744921270050,3.21724495,1585.9,1585.8,3.88806]
[1744921270251,4.47832495,1585.9,1585.8,3.88806]
[1744921270647,3.21724495,1585.9,1585.8,3.88806]
[1744921270853,4.91654495,1585.9,1585.8,3.88806]
[1744921272157,6.17762495,1585.9,1585.8,3.88806]
[1744921272559,3.21724495,1585.9,1585.8,3.88806]
[1744921272857,0.00944495,1585.9,1585.8,12.09586]
[1744921273160,4.95e-06,1585.9,1585.8,12.09586]
[1744921273659,4.95e-06,1585.9,1585.8,12.56060408]
[1744921281060,7.55041238,1586.7,1586.6,1.26053]
[1744921281361,13.13041238,1586.7,1586.6,1.26053]
[1744921281561,18.13041238,1586.7,1586.6,1.26053]
[1744921281960,2.3722,1586.7,1586.6,1.26053]
[1744921282463,4.0194,1586.7,1586.6,1.26053]
[1744921282663,4.0194,1586.7,1586.6,2.94623]
[1744921282863,5.27985,1586.7,1586.6,2.94623]
[1744921283062,5.27985,1586.7,1586.6,1.26053]
[1744921284563,4.0194,1586.7,1586.6,1.26053]
[1744921284758,4.0194,1586.7,1586.6,2.92233]
[1744921287659,0.00944495,1586.8,1586.7,1.26045]
[1744921287863,0.00944495,1586.8,1586.7,7.45345]
[1744921288063,0.00944495,1586.8,1586.7,12.45345]
[1744921288366,0.00944495,1586.8,1586.7,7.45345]
[1744921291967,3.21724495,1586.8,1586.7,3.03475]
[1744921292169,3.29224495,1586.8,1586.7,1.26045]
[1744921293568,5.02724495,1586.8,1586.7,1.26045]
[1744921299369,1.81944495,1586.8,1586.7,1.26045]
[1744921299773,3.07981495,1586.8,1586.7,1.26045]
[1744921299975,1.81944495,1586.8,1586.7,1.26045]
[1744921300271,3.07981495,1586.8,1586.7,1.26045]
[1744921300970,1.26053,1586.6,1586.5,4.56544495]
[1744921301172,1.26077,1586.3,1586.2,4.547]
[1744921301370,1.26077,1586.3,1586.2,4.53776145]
[1744921301676,1.261,1586.0,1585.9,1.26104]
[1744921301871,1.26099,1586.1,1585.9,5.80804]
[1744921302072,2.99019,1586.1,1585.9,5.80804]
[1744921302483,1.6587,1586.0,1585.9,5.80804]
[1744921302674,1.6587,1586.0,1585.9,7.46794]
[1744921305187,3.2078,1586.2,1586.1,1.26092]
[1744921305381,2.424,1586.3,1585.9,9.35957]
[1744921305382,3.68478,1586.3,1586.2,1.26084]
[1744921305581,5.44848,1586.3,1586.2,5.80884]
[1744921306384,5.44848,1586.3,1586.2,4.548]
[1744921308190,5.44848,1586.3,1586.2,5.80884]
[1744921308390,5.44848,1586.3,1586.2,4.548]
[1744921308991,5.44848,1586.3,1586.2,5.80884]
[1744921310087,5.44848,1586.3,1586.2,1.26084]
[1744921315493,5.44848,1586.3,1586.2,3.01194]
[1744921316795,5.44848,1586.3,1586.2,1.7511]
[1744921317799,1.26084,1586.2,1586.1,1.26085]
[1744921317996,3.01364,1586.2,1586.1,2.94395]
[1744921318496,3.01364,1586.2,1586.0,10.19919]
[1744921318497,1.26092,1586.1,1586.0,8.30764]
[1744921318799,3.01372,1586.1,1586.0,7.05314]
[1744921319292,3.01372,1586.1,1586.0,4.548]
[1744921319590,3.01372,1586.1,1586.0,5.809]
[1744921320293,3.01372,1586.1,1586.0,4.548]
[1744921320501,3.01372,1586.1,1586.0,5.809]
[1744921321192,3.01372,1586.1,1586.0,4.548]
[1744921321395,3.01372,1586.1,1586.0,5.809]
[1744921321800,1.7528,1586.1,1586.0,5.809]
[1744921321998,6.14872,1586.2,1586.1,1.26092]
[1744921322199,6.14872,1586.2,1586.1,3.02672]
[1744921323396,3.2078,1586.2,1586.1,3.02672]
[1744921323597,3.2078,1586.4,1586.3,1.26069]
[1744921323791,4.46855,1586.4,1586.3,1.26069]
[1744921324004,10.75850238,1586.4,1586.3,5.80969]
[1744921324196,10.75850238,1586.4,1586.3,9.91759]
[1744921326903,7.55070238,1586.4,1586.3,9.91759]
[1744921327510,6.28995238,1586.4,1586.3,9.91759]
[1744921328306,1.26062,1586.5,1586.4,1.26069]
[1744921328498,4.46837,1586.6,1586.5,1.26061]
[1744921328707,4.45913145,1586.6,1586.5,1.26061]
[1744921329705,3.19856145,1586.6,1586.5,1.26061]
[1744921329901,3.19856145,1586.6,1586.5,2.94101]
[1744921330203,4.53409145,1586.6,1586.5,2.94101]
[1744921330707,4.54333,1586.6,1586.5,2.94101]
[1744921331201,3.2078,1586.6,1586.5,2.94101]
[1744921331805,4.46833,1586.6,1586.5,2.94101]
[1744921333605,3.2078,1586.6,1586.5,2.94101]
[1744921334312,4.47767495,1586.8,1586.7,1.26045]
[1744921334608,3.21724495,1586.8,1586.7,1.26045]
[1744921335005,3.21724495,1586.8,1586.7,2.89835]
[1744921336109,3.29224495,1586.8,1586.7,2.89835]
[1744921338107,4.55261495,1586.8,1586.7,2.89835]
[1744921339109,3.29224495,1586.8,1586.7,2.89835]
[1744921339314,3.21724495,1586.8,1586.7,2.89835]
[1744921339516,4.47761495,1586.8,1586.7,2.89835]
[1744921339711,3.21724495,1586.8,1586.7,2.89835]
[1744921340117,1.26045,1586.7,1586.6,4.541]
[1744921340311,1.6932,1586.7,1586.6,5.80153]
[1744921340711,1.6932,1586.7,1586.6,7.47103]
[1744921341019,2.95365,1586.7,1586.6,7.47103]
[1744921341212,3.02865,1586.7,1586.6,7.47103]
[1744921341412,4.28985,1586.7,1586.6,7.47103]
[1744921343420,5.58965,1586.7,1586.6,4.541]
[1744921343920,5.58965,1586.7,1586.6,5.80153]
[1744921346423,9.78301851,1586.7,1586.6,5.80153]
[1744921348028,2.07432356,1586.7,1586.6,12.50923]
[1744921348326,2.07432356,1586.7,1586.6,13.71993]
[1744921349414,2.07432356,1586.7,1586.6,8.71993]
[1744921350424,1.26045,1586.7,1586.6,8.71987]
[1744921350723,6.25865495,1586.8,1586.7,1.26045]
[1744921350922,6.25865495,1586.8,1586.7,2.89825]
[1744921351328,4.99824495,1586.8,1586.7,2.89825]
[1744921352429,6.25861495,1586.8,1586.7,2.89825]
[1744921354127,3.21724495,1586.8,1586.7,2.89825]
[1744921355129,3.21724495,1586.8,1586.7,2.97325]
[1744921355422,0.00944495,1586.8,1586.7,2.97325]
[1744921356128,0.00944495,1586.8,1586.7,2.89825]
[1744921356828,1.73324495,1586.8,1586.7,2.89825]
[1744921357930,2.99361495,1586.8,1586.7,2.89825]
[1744921359325,2.99361495,1586.8,1586.7,1.6378]
[1744921359833,1.26045,1586.7,1586.6,5.80047]
[1744921360028,4.46825,1586.7,1586.6,8.79017]
[1744921360525,3.2078,1586.7,1586.6,8.79017]
[1744921362327,1.26053,1586.6,1586.5,1.2709]
[1744921362525,1.26053,1586.6,1586.1,11.54740023]
[1744921362526,1.26077,1586.3,1586.2,5.48244]
[1744921362725,3.2078,1586.3,1586.2,5.47320145]
[1744921362925,7.36773,1586.6,1586.4,1.26069]
[1744921362926,6.19566,1586.5,1586.4,1.26069]
[1744921363129,6.27066,1586.5,1586.4,1.26069]
[1744921363629,0.075,1586.5,1586.4,5.79369]
[1744921363831,3.2078,1586.7,1586.6,1.26053]
[1744921364128,3.19856145,1586.7,1586.6,1.26053]
[1744921364432,4.45901145,1586.7,1586.6,1.26053]
[1744921364631,6.16301145,1586.7,1586.6,1.26053]
[1744921365527,1.26053,1586.6,1586.5,3.73847]
[1744921366031,1.704,1586.6,1586.5,5.45467]
[1744921366234,2.96453,1586.6,1586.5,5.45467]
[1744921368131,3.03953,1586.6,1586.5,5.45467]
[1744921368734,3.03953,1586.6,1586.5,5.45471]
[1744921369031,3.03953,1586.6,1586.5,4.26971]
[1744921369434,3.03953,1586.6,1586.5,3.0091]
[1744921369632,1.26061,1586.5,1586.4,4.533]
[1744921369834,6.15971,1586.5,1586.4,6.14286145]
[1744921370330,6.23471,1586.5,1586.4,6.14286145]
[1744921370730,6.23471,1586.5,1586.4,4.52376145]
[1744921370932,1.26069,1586.4,1586.3,4.11494]
[1744921371129,3.02699,1586.4,1586.3,4.11494]
[1744921372834,1.26077,1586.3,1586.2,6.9931]
[1744921373337,0.075,1586.3,1586.2,8.76374]
[1744921373828,0.075,1586.3,1586.2,13.76374]
[1744921374231,1.2606,1586.6,1586.5,1.26061]
[1744921374531,1.25136145,1586.6,1586.5,1.26061]
[1744921374732,9.58602702,1586.6,1586.5,5.40111]
[1744921375031,11.42572702,1586.6,1586.5,5.40111]
[1744921376735,9.66102702,1586.6,1586.5,5.40111]
[1744921377130,9.58602702,1586.6,1586.5,5.40111]
[1744921378135,9.66102702,1586.6,1586.5,5.40111]
[1744921378331,9.66102702,1586.6,1586.5,4.1405]
[1744921378534,11.36302702,1586.6,1586.5,1.2031]
[1744921378726,12.62432702,1586.6,1586.5,1.2031]
[1744921379133,1.26061,1586.5,1586.4,3.01523]
[1744921379326,6.17041,1586.5,1586.4,3.00599145]
[1744921380036,6.24541,1586.5,1586.4,3.00599145]
[1744921381338,6.24541,1586.5,1586.4,3.01529]
[1744921382939,0.8787596,1586.5,1586.4,3.01529]
[1744921383529,0.8787596,1586.5,1586.4,8.01529]
[1744921384440,0.8037596,1586.5,1586.4,8.01529]
[1744921385141,0.8787596,1586.5,1586.4,8.01529]
[1744921386441,0.8787596,1586.5,1586.4,3.01529]
[1744921387041,0.075,1586.5,1586.4,3.01529]
[1744921393444,9.52562708,1586.8,1586.7,1.26045]
[1744921393641,9.51638853,1586.8,1586.7,5.78745]
[1744921393838,9.51638853,1586.8,1586.7,9.85075]
[1744921394344,9.59138853,1586.8,1586.7,9.85075]
[1744921394936,11.30428853,1586.8,1586.7,9.85075]
[1744921395344,4.9959064,1586.8,1586.7,9.85075]
[1744921396550,1.7881064,1586.8,1586.7,9.85075]
[1744921396846,4.9959064,1586.8,1586.7,9.85075]
[1744921397743,1.7881064,1586.8,1586.7,9.85075]
[1744921397945,4.9959064,1586.8,1586.7,9.85075]
[1744921398248,6.2562764,1586.8,1586.7,5.78745]
[1744921398449,11.2562764,1586.8,1586.7,5.78745]
[1744921398750,18.36827395,1586.8,1586.7,5.78745]
[1744921399341,18.36827395,1586.8,1586.7,1.26045]
[1744921399545,13.36827395,1586.8,1586.7,1.26045]
[1744921400848,1.26048,1586.7,1586.6,1.26048]
[1744921401048,5.58108,1586.7,1586.6,1.26048]
[1744921403246,5.58108,1586.7,1586.5,8.72646]
[1744921403247,1.26053,1586.6,1586.5,8.72646]
[1744921403448,6.11393,1586.6,1586.5,5.78756]
[1744921403844,4.8534,1586.6,1586.5,5.78756]
[1744921404050,1.6456,1586.6,1586.5,5.78756]
[1744921404352,9.92620395,1586.8,1586.7,1.26045]
[1744921404749,10.32000395,1586.8,1586.7,1.26045]
[1744921404956,10.32000395,1586.8,1586.7,2.99915]
[1744921406159,10.39500395,1586.8,1586.7,2.99915]
[1744921406660,3.2830064,1586.8,1586.7,2.99915]
[1744921407360,0.0752064,1586.8,1586.7,2.99915]
[1744921408161,0.0002064,1586.8,1586.7,2.99915]
[1744921410160,0.0752064,1586.8,1586.7,2.99915]
[1744921410362,1.6904064,1586.8,1586.7,2.99915]
[1744921411057,0.0752064,1586.8,1586.7,2.99915]
[1744921411758,6.4e-06,1586.8,1586.7,2.99915]
[1744921412059,3.08667213,1587.0,1586.9,1.26029]
[1744921412264,1.28871213,1587.0,1586.9,5.78729]
[1744921412453,2.13e-06,1587.0,1586.9,14.81439]
[1744921412657,2.13e-06,1587.0,1586.9,18.02219]
[1744921412956,7.08e-06,1587.1,1587.0,1.26021]
[1744921414362,7.08e-06,1587.1,1587.0,6.26021]
[1744921414664,7.08e-06,1587.1,1587.0,6.76425582]
[1744921414862,14.13053299,1587.2,1587.1,1.26013]
[1744921415361,12.75273299,1587.2,1587.1,1.26013]
[1744921415955,0.075,1587.2,1587.1,1.26013]
[1744921416163,1e-05,1587.2,1587.1,6.26013]
[1744921416367,1e-05,1587.2,1587.1,9.46793]
[1744921416758,6.64e-06,1587.3,1587.2,1.26005]
[1744921416962,3.98204265,1587.6,1587.5,1.25981]
[1744921417164,4.05704265,1587.6,1587.5,5.78481]
[1744921417564,4.05704265,1587.6,1587.5,8.25001]
[1744921419065,2.42453265,1587.6,1587.5,13.25001]
[1744921419264,0.13226265,1587.6,1587.5,13.25001]
[1744921419469,9.13935559,1587.7,1587.6,1.25973]
[1744921419769,9.13935559,1587.7,1587.6,4.46753]
[1744921420066,4.97155559,1587.7,1587.6,4.46753]
[1744921420260,0.69686559,1587.7,1587.6,9.46753]
[1744921420463,8.43396471,1588.3,1588.2,1.25926]
[1744921420770,19.56704471,1588.3,1588.2,1.25926]
[1744921421266,19.64204471,1588.3,1588.2,1.25926]
[1744921422764,18.38286471,1588.3,1588.2,1.25926]
[1744921422965,13.38286471,1588.3,1588.2,1.25926]
[1744921424059,10.17506471,1588.3,1588.2,1.25926]
[1744921424569,13.38286471,1588.3,1588.2,1.25926]
[1744921424971,10.17506471,1588.3,1588.2,1.25926]
[1744921425671,13.38286471,1588.3,1588.2,1.25926]
[1744921425871,14.64204471,1588.3,1588.2,1.25926]
[1744921426074,4.9489,1588.3,1588.2,1.25926]
[1744921426265,1.25926,1588.2,1588.1,5.79371495]
[1744921426466,2.96126,1588.2,1588.1,5.79371495]
[1744921426773,2.8911,1588.2,1588.1,5.79371495]
[1744921427375,2.9661,1588.2,1588.1,5.79371495]
[1744921429078,4.22536,1588.2,1588.1,5.79371495]
[1744921429379,2.9661,1588.2,1588.1,5.79371495]
[1744921429674,6.1739,1588.2,1588.1,5.79371495]
[1744921430276,7.43316,1588.2,1588.1,5.79371495]
[1744921431272,7.43316,1588.2,1588.1,4.53444495]
[1744921431978,7.43316,1588.2,1588.1,5.79378495]
[1744921434081,7.43316,1588.2,1588.1,1.26878495]
[1744921435180,4.22536,1588.2,1588.1,1.26878495]
[1744921435375,7.43316,1588.2,1588.1,1.26878495]
[1744921436183,8.60526,1588.2,1588.1,0.00944495]
[1744921444488,8.60526,1588.2,1588.1,1.26878495]
[1744921445582,7.41616,1588.2,1588.1,2.95798495]
[1744921445782,7.41616,1588.2,1588.1,0.00944495]
[1744921446584,7.41616,1588.2,1588.1,1.26878495]
[1744921446787,6.24406,1588.2,1588.1,2.95798495]
[1744921447489,0.075,1588.2,1588.1,2.95798495]
[1744921448283,0.075,1588.2,1588.1,7.95798495]
[1744921448483,1.6521,1588.7,1588.6,1.25894]
[1744921448684,6.11876,1588.7,1588.6,1.25894]
[1744921448988,1.25894,1588.6,1588.5,9.72206]
[1744921449189,0.075,1588.6,1588.5,8.08946]
[1744921453988,1.33394,1588.6,1588.5,8.08946]
[1744921454688,0.075,1588.6,1588.5,8.08946]
[1744921456588,1.33394,1588.6,1588.5,8.08946]
[1744921457288,3.09044,1588.6,1588.5,8.08946]
[1744921458590,1.8315,1588.6,1588.5,8.08946]
[1744921459380,3.09044,1588.6,1588.5,8.08946]
[1744921459588,1.8315,1588.6,1588.5,8.08946]
[1744921459788,0.075,1588.6,1588.5,8.08946]
[1744921460693,0.075,1588.6,1588.3,3.14777]
[1744921460892,2.94414,1588.5,1588.4,1.25905]
[1744921461087,3.01914,1588.5,1588.4,1.25905]
[1744921461599,1.2591,1588.4,1588.3,2.3408]
[1744921462187,1.3341,1588.4,1588.3,3.59998]
[1744921462401,3.0192,1588.4,1588.3,3.59998]
[1744921463688,3.0192,1588.4,1588.3,1.2147]
[1744921463987,1.25926,1588.2,1588.1,0.00944495]
[1744921464194,1.33426,1588.2,1588.1,0.00944495]
[1744921464385,3.03716,1588.2,1588.1,0.00944495]
[1744921464786,8.03716,1588.2,1588.1,0.00944495]
[1744921466497,8.53385794,1588.2,1588.1,0.00944495]
[1744921466991,8.53385794,1588.2,1587.6,102.58170023]
[1744921466992,1.25965,1587.7,1587.6,102.58170023]
[1744921467182,1.33465,1587.7,1587.6,104.21660023]
[1744921467591,1.33465,1587.7,1587.6,103.03880023]
[1744921467791,4.54245,1587.7,1587.6,15.71480023]
[1744921468193,4.54245,1587.7,1587.6,8.33960023]
[1744921470597,4.54245,1587.7,1587.6,9.59933023]
[1744921470793,0.075,1587.7,1587.6,1.25973]
[1744921470997,0.075,1587.7,1587.6,2.97413]
[1744921472999,1.33465,1587.7,1587.6,2.97413]
[1744921473191,4.54245,1587.7,1587.6,2.97413]
[1744921473902,4.54245,1587.7,1587.6,1.25973]
[1744921474199,4.54245,1587.7,1587.6,3.00473]
[1744921474400,6.19365,1587.7,1587.6,3.00473]
[1744921477801,6.19365,1587.7,1587.6,1.745]
[1744921478003,1.25973,1587.6,1587.5,1.26925495]
[1744921478298,2.93893,1587.6,1587.5,1.26925495]
[1744921478495,2.93893,1587.6,1587.5,1.76394495]
[1744921479300,3.01393,1587.6,1587.5,1.76394495]
[1744921479602,3.01393,1587.6,1587.5,0.00944495]
[1744921479794,1.25997,1587.3,1587.2,4.51]
[1744921479994,4.46777,1587.3,1587.2,4.51]
[1744921480195,1.26005,1587.2,1587.1,4.05287]
[1744921480400,1.26005,1587.2,1587.1,2.40327]
[1744921481097,1.33505,1587.2,1587.1,2.40327]
[1744921482204,1.33505,1587.2,1587.1,1.1432]
[1744921482606,3.11295,1587.2,1587.1,1.1432]
[1744921483502,3.11295,1587.2,1587.1,2.40333]
[1744921484201,1.33505,1587.2,1587.1,2.40333]
[1744921485104,1.33505,1587.2,1587.1,1.1432]
[1744921485692,3.03985,1587.2,1587.1,1.1432]
[1744921486603,3.03985,1587.2,1587.1,2.40333]
[1744921486905,0.075,1587.2,1587.1,2.40333]
[1744921487100,1.33505,1587.2,1587.1,2.40333]
[1744921487805,3.03985,1587.2,1587.1,2.40333]
[1744921488896,3.03985,1587.2,1587.1,1.1432]
[1744921490407,3.03985,1587.2,1587.1,2.40333]
[1744921490606,3.03985,1587.2,1587.1,1.1432]
[1744921491507,3.03985,1587.2,1587.1,2.40333]
[1744921491808,1.33505,1587.2,1587.1,2.40333]
[1744921494112,0.075,1587.2,1587.1,7.40333]
[1744921494302,0.075,1587.2,1587.1,9.09543]
[1744921496902,0.075,1587.2,1587.1,4.09543]
[1744921499005,1.33505,1587.2,1587.1,4.09543]
[1744921499310,0.075,1587.2,1587.1,4.09543]
[1744921499510,1.33505,1587.2,1587.1,4.09543]
[1744921499917,0.075,1587.2,1587.1,4.09543]
[1744921501215,1.33505,1587.2,1587.1,4.09543]
[1744921502212,3.11125,1587.2,1587.1,4.09543]
[1744921503518,6.31905,1587.2,1587.1,4.09543]
[1744921506122,6.31905,1587.2,1587.1,1.26013]
[1744921507432,3.2828,1587.2,1587.1,2.94673]
[1744921507619,0.075,1587.2,1587.1,4.04873]
[1744921509221,4.46761,1587.5,1587.4,1.25989]
[1744921509425,1.25981,1587.5,1587.4,5.76489]
[1744921509722,4.46761,1587.5,1587.4,9.83459]
[1744921510019,1.25981,1587.5,1587.4,9.83459]
[1744921510224,1.33481,1587.5,1587.4,9.83459]
[1744921510420,3.06261,1587.5,1587.4,4.505]
[1744921510617,6.27041,1587.5,1587.4,4.505]
[1744921510823,8.58881,1587.5,1587.4,4.505]
[1744921511624,8.58881,1587.5,1587.4,5.76489]
[1744921511820,8.58881,1587.5,1587.4,4.505]
[1744921512624,1.25989,1587.4,1587.3,3.04431]
[1744921512827,2.95639,1587.4,1587.3,3.04431]
[1744921513126,3.03139,1587.4,1587.3,3.04431]
[1744921519935,1.25997,1587.3,1587.2,4.505]
[1744921520127,1.26013,1587.1,1587.0,9.83684495]
[1744921520430,4.46793,1587.1,1587.0,9.83684495]
[1744921520631,6.24123,1587.1,1587.0,9.83684495]
[1744921521229,6.31623,1587.1,1587.0,9.83684495]
[1744921524034,0.075,1587.1,1587.0,9.83684495]
[1744921524230,4.1893342,1587.2,1587.1,1.26013]
[1744921524431,4.1893342,1587.2,1587.1,2.89253]
[1744921525938,2.7656443,1587.2,1587.1,11.10033]
[1744921526632,2.7656443,1587.4,1587.3,1.25997]
[1744921526832,2.7656443,1587.4,1587.3,5.75797]
[1744921527040,2.7656443,1587.4,1587.3,10.75797]
[1744921527243,2.7656443,1587.4,1587.3,12.92597]
[1744921527941,2.7656443,1587.4,1587.3,7.92597]
[1744921528135,2.8406443,1587.4,1587.3,7.92597]
[1744921530042,0.075,1587.4,1587.3,7.92597]
[1744921531143,6.24562,1587.7,1587.6,1.25973]
[1744921531338,1.25973,1587.6,1587.5,1.25975]
[1744921531543,1.25973,1587.6,1587.5,2.97245]
[1744921532143,1.33473,1587.6,1587.5,2.97245]
[1744921532839,3.02473,1587.6,1587.5,2.97245]
[1744921534845,1.765,1587.6,1587.5,2.97245]
[1744921537456,3.02473,1587.6,1587.5,2.97245]
[1744921538051,1.25981,1587.5,1587.4,4.498]
[1744921538239,8.08616,1587.5,1587.2,7.39887]
[1744921538440,1.25997,1587.4,1587.3,1.25994]
[1744921538741,2.98877,1587.4,1587.3,1.25994]
[1744921539046,3.06377,1587.4,1587.3,1.25994]
[1744921541045,3.06377,1587.4,1587.3,2.90384]
[1744921542852,6.27157,1587.4,1587.3,2.90384]
[1744921545847,3.14996,1587.3,1587.1,2.2742]
[1744921546053,1.26013,1587.1,1587.0,93.07560495]
[1744921546256,1.26013,1587.1,1587.0,5.76060495]
[1744921546450,2.92663,1587.1,1587.0,5.76060495]
[1744921546648,2.92663,1587.1,1587.0,7.44240495]
[1744921547154,3.00163,1587.1,1587.0,7.44240495]
[1744921547452,1.7415,1587.1,1587.0,7.44240495]
[1744921547650,0.075,1587.1,1587.0,7.44240495]
[1744921549254,1.26009,1587.2,1587.1,1.26013]
[1744921549558,1.26009,1587.2,1587.1,2.95563]
[1744921550054,1.33509,1587.2,1587.1,2.95563]
[1744921550254,3.10429,1587.2,1587.1,2.95563]
[1744921555557,3.10429,1587.2,1587.1,1.26013]
[1744921556063,1.26013,1587.1,1587.0,5.76060495]
[1744921556354,13.48673,1587.1,1587.0,0.00944495]
[1744921557258,13.56173,1587.1,1587.0,0.00944495]
[1744921557453,13.56173,1587.1,1587.0,1.26965495]